[Event "*** Titled Tuesday Blitz"]
[Site "Chess.com"]
[Date "2020.04.07"]
[Round "7"]
[White "Teidi96"]
[Black "oneshot007"]
[Result "1-0"]
[WhiteElo "2219"]
[BlackElo "2390"]
[TimeControl "180+1"]
[EndTime "14:19:17 PDT"]
[Termination "Teidi96 won on time"]

1. e4 {[%clk 0:02:57.6]} 1... c5 {[%clk 0:03:00]} 2. Nf3 {[%clk 0:02:57.5]} 2...
Nc6 {[%clk 0:03:00.2]} 3. d4 {[%clk 0:02:55.7]} 3... cxd4 {[%clk 0:03:01.1]} 4.
Nxd4 {[%clk 0:02:56.4]} 4... g6 {[%clk 0:03:01.8]} 5. c4 {[%clk 0:02:55.3]} 5...
Bg7 {[%clk 0:03:01.8]} 6. Be3 {[%clk 0:02:55.9]} 6... Qb6 {[%clk 0:03:02.4]} 7.
Nxc6 {[%clk 0:02:26.2]} 7... Qxc6 {[%clk 0:03:03.3]} 8. Qc2 {[%clk 0:02:25.1]}
8... Nf6 {[%clk 0:03:03.1]} 9. Nc3 {[%clk 0:02:20.6]} 9... Ng4 {[%clk
0:02:57.1]} 10. Bf4 {[%clk 0:02:06]} 10... O-O {[%clk 0:02:56.8]} 11. Be2 {[%clk
0:02:03.6]} 11... d6 {[%clk 0:02:56.4]} 12. O-O {[%clk 0:02:00.7]} 12... Ne5
{[%clk 0:02:45.7]} 13. b3 {[%clk 0:01:56.3]} 13... Be6 {[%clk 0:02:44.3]} 14.
Rac1 {[%clk 0:01:50.4]} 14... Rfc8 {[%clk 0:02:43.4]} 15. Nd5 {[%clk 0:01:45.8]}
15... Bxd5 {[%clk 0:02:43]} 16. exd5 {[%clk 0:01:45.1]} 16... Qc7 {[%clk
0:02:36.7]} 17. Qe4 {[%clk 0:01:43.8]} 17... Qa5 {[%clk 0:02:33]} 18. Rc2 {[%clk
0:01:38.5]} 18... a6 {[%clk 0:02:23.3]} 19. Be3 {[%clk 0:01:38.2]} 19... Qd8
{[%clk 0:01:58.7]} 20. g3 {[%clk 0:01:37.2]} 20... b5 {[%clk 0:01:58]} 21. cxb5
{[%clk 0:01:29.9]} 21... Rxc2 {[%clk 0:01:55.1]} 22. Qxc2 {[%clk 0:01:30.8]}
22... axb5 {[%clk 0:01:55.4]} 23. Bxb5 {[%clk 0:01:28.1]} 23... Qa5 {[%clk
0:01:36.9]} 24. a4 {[%clk 0:01:25.6]} 24... Qb4 {[%clk 0:01:37.2]} 25. Bd2
{[%clk 0:01:20.8]} 25... Qxd2 {[%clk 0:01:27.4]} 26. Qc7 {[%clk 0:01:07.1]}
26... Qxd5 {[%clk 0:01:22.8]} 27. f4 {[%clk 0:00:57.5]} 27... Nf3+ {[%clk
0:01:22.1]} 28. Kf2 {[%clk 0:00:57]} 28... Bd4+ {[%clk 0:01:20.2]} 29. Ke2
{[%clk 0:00:56.6]} 29... Qe4+ {[%clk 0:01:20.5]} 30. Kd1 {[%clk 0:00:55.9]}
30... Nxh2 {[%clk 0:01:06.5]} 31. Re1 {[%clk 0:00:48.3]} 31... Qb1+ {[%clk
0:01:06.1]} 32. Ke2 {[%clk 0:00:45.4]} 32... Qb2+ {[%clk 0:01:06.1]} 33. Kd3
{[%clk 0:00:39.6]} 33... Bf6 {[%clk 0:00:58.6]} 34. Bc4 {[%clk 0:00:30.8]} 34...
Qd4+ {[%clk 0:00:52.5]} 35. Ke2 {[%clk 0:00:24.9]} 35... Ng4 {[%clk 0:00:52.3]}
36. Qc6 {[%clk 0:00:14.2]} 36... Rf8 {[%clk 0:00:49.1]} 37. Qf3 {[%clk
0:00:12.6]} 37... h5 {[%clk 0:00:46.4]} 38. Rd1 {[%clk 0:00:11.6]} 38... Qxc4+
{[%clk 0:00:43.7]} 39. bxc4 {[%clk 0:00:10.9]} 39... Kg7 {[%clk 0:00:10.4]} 40.
Rd2 {[%clk 0:00:10.9]} 40... e5 {[%clk 0:00:07.9]} 41. a5 {[%clk 0:00:09.7]}
41... Re8 {[%clk 0:00:05.4]} 42. f5 {[%clk 0:00:09.3]} 42... e4 {[%clk 0:00:04]}
43. Qf1 {[%clk 0:00:06.5]} 43... Re5 {[%clk 0:00:04.3]} 44. Ra2 {[%clk
0:00:05.3]} 44... Rxf5 {[%clk 0:00:02.7]} 45. Qxf5 {[%clk 0:00:04.4]} 1-0

[Event "*** Titled Tuesday Blitz"]
[Site "Chess.com"]
[Date "2020.04.07"]
[Round "7"]
[White "PawnEatingZombie"]
[Black "PauloCesarCosta_sad"]
[Result "1-0"]
[WhiteElo "2135"]
[BlackElo "2089"]
[TimeControl "180+1"]
[EndTime "14:19:18 PDT"]
[Termination "PawnEatingZombie won on time"]

1. d4 {[%clk 0:03:00.9]} 1... d5 {[%clk 0:02:59.4]} 2. c4 {[%clk 0:03:01.3]}
2... c6 {[%clk 0:02:59.2]} 3. Nc3 {[%clk 0:03:01.8]} 3... e6 {[%clk 0:02:59.2]}
4. e3 {[%clk 0:03:01.8]} 4... f5 {[%clk 0:02:58.6]} 5. f4 {[%clk 0:03:00.3]}
5... Nf6 {[%clk 0:02:58]} 6. Nf3 {[%clk 0:03:00.7]} 6... Bd6 {[%clk 0:02:56.1]}
7. Be2 {[%clk 0:03:00.8]} 7... O-O {[%clk 0:02:55.5]} 8. O-O {[%clk 0:03:01.3]}
8... Nbd7 {[%clk 0:02:55.3]} 9. Qc2 {[%clk 0:03:00.1]} 9... Ne4 {[%clk
0:02:54.4]} 10. Bd2 {[%clk 0:02:59.3]} 10... Ndf6 {[%clk 0:02:54.1]} 11. Rab1
{[%clk 0:02:49.8]} 11... a5 {[%clk 0:02:45.2]} 12. a3 {[%clk 0:02:47]} 12... Bd7
{[%clk 0:02:43.7]} 13. c5 {[%clk 0:02:38.6]} 13... Bc7 {[%clk 0:02:39.8]} 14. b4
{[%clk 0:02:38.8]} 14... axb4 {[%clk 0:02:39.7]} 15. axb4 {[%clk 0:02:39.7]}
15... Be8 {[%clk 0:02:35.7]} 16. Ne5 {[%clk 0:02:38.1]} 16... Nxc3 {[%clk
0:02:30.5]} 17. Bxc3 {[%clk 0:02:36.7]} 17... Bxe5 {[%clk 0:02:30.3]} 18. fxe5
{[%clk 0:02:36.1]} 18... Ne4 {[%clk 0:02:30.8]} 19. Be1 {[%clk 0:02:29.4]} 19...
Qg5 {[%clk 0:02:29.4]} 20. Bd2 {[%clk 0:02:11.4]} 20... Bh5 {[%clk 0:02:28.3]}
21. Bd3 {[%clk 0:02:01.4]} 21... Ra3 {[%clk 0:02:16]} 22. Ra1 {[%clk 0:01:48.1]}
22... Rxa1 {[%clk 0:02:13.1]} 23. Rxa1 {[%clk 0:01:47.7]} 23... Nxd2 {[%clk
0:02:09.2]} 24. Qxd2 {[%clk 0:01:47]} 24... f4 {[%clk 0:02:04.9]} 25. exf4
{[%clk 0:00:48.8]} 25... Qxf4 {[%clk 0:02:04.5]} 26. Qxf4 {[%clk 0:00:46.3]}
26... Rxf4 {[%clk 0:02:04.4]} 27. Ra8+ {[%clk 0:00:33.3]} 27... Kf7 {[%clk
0:02:00.8]} 28. Ra7 {[%clk 0:00:31]} 28... Rxd4 {[%clk 0:01:54.8]} 29. Rxb7+
{[%clk 0:00:30.9]} 29... Kf8 {[%clk 0:01:53.4]} 30. Bf1 {[%clk 0:00:28.6]} 30...
Rd1 {[%clk 0:01:50.9]} 31. Kf2 {[%clk 0:00:28.1]} 31... Rd2+ {[%clk 0:01:44.9]}
32. Ke3 {[%clk 0:00:23.5]} 32... Rd1 {[%clk 0:01:26.3]} 33. Bd3 {[%clk
0:00:20.3]} 33... Bg6 {[%clk 0:01:10.5]} 34. Bxg6 {[%clk 0:00:19.2]} 34... hxg6
{[%clk 0:01:11.4]} 35. Rb6 {[%clk 0:00:18.5]} 35... Rb1 {[%clk 0:01:09]} 36.
Rxc6 {[%clk 0:00:18.3]} 36... Rxb4 {[%clk 0:01:06.6]} 37. Rxe6 {[%clk
0:00:18.7]} 37... Kf7 {[%clk 0:01:03.7]} 38. Rd6 {[%clk 0:00:14.6]} 38... Re4+
{[%clk 0:01:03.6]} 39. Kd3 {[%clk 0:00:14.2]} 39... Rxe5 {[%clk 0:01:03.8]} 40.
c6 {[%clk 0:00:14.6]} 40... Re7 {[%clk 0:00:57.9]} 41. Kd4 {[%clk 0:00:12.4]}
41... Rc7 {[%clk 0:00:55.8]} 42. Kxd5 {[%clk 0:00:12.1]} 42... g5 {[%clk
0:00:46.4]} 43. Rd7+ {[%clk 0:00:11.1]} 43... Rxd7+ {[%clk 0:00:43.8]} 44. cxd7
{[%clk 0:00:12]} 44... Ke7 {[%clk 0:00:43.3]} 45. Kc6 {[%clk 0:00:07]} 45... Kd8
{[%clk 0:00:42.8]} 46. Kd6 {[%clk 0:00:07.4]} 46... g4 {[%clk 0:00:41.1]} 47. g3
{[%clk 0:00:04.2]} 47... g5 {[%clk 0:00:40.1]} 48. Ke6 {[%clk 0:00:03.7]} 1-0

[Event "*** Titled Tuesday Blitz"]
[Site "Chess.com"]
[Date "2020.04.07"]
[Round "7"]
[White "2L8IWUN"]
[Black "Gennady_Kozlov"]
[Result "1/2-1/2"]
[WhiteElo "2386"]
[BlackElo "2589"]
[TimeControl "180+1"]
[EndTime "14:19:19 PDT"]
[Termination "Game drawn by repetition"]

1. d4 {[%clk 0:03:00.9]} 1... e6 {[%clk 0:02:58.8]} 2. Nf3 {[%clk 0:03:01.5]}
2... Nf6 {[%clk 0:02:57.8]} 3. Bf4 {[%clk 0:03:01.1]} 3... b6 {[%clk 0:02:57.2]}
4. e3 {[%clk 0:03:01.5]} 4... Bb7 {[%clk 0:02:57.6]} 5. Nbd2 {[%clk 0:03:02.1]}
5... Be7 {[%clk 0:02:58.2]} 6. h3 {[%clk 0:03:01.6]} 6... O-O {[%clk 0:02:55.9]}
7. Bd3 {[%clk 0:03:02.1]} 7... d5 {[%clk 0:02:56.2]} 8. O-O {[%clk 0:03:01.5]}
8... c5 {[%clk 0:02:56.9]} 9. c3 {[%clk 0:03:01.5]} 9... Bd6 {[%clk 0:02:56.6]}
10. Ne5 {[%clk 0:02:52.2]} 10... Nc6 {[%clk 0:02:56.4]} 11. Ndf3 {[%clk
0:02:42.5]} 11... Ne4 {[%clk 0:02:49.1]} 12. Nxc6 {[%clk 0:02:37.8]} 12... Bxc6
{[%clk 0:02:48.4]} 13. Bxd6 {[%clk 0:02:23]} 13... Qxd6 {[%clk 0:02:47.7]} 14.
Bxe4 {[%clk 0:02:23.9]} 14... dxe4 {[%clk 0:02:47.3]} 15. Ne5 {[%clk 0:02:24]}
15... cxd4 {[%clk 0:02:43.3]} 16. cxd4 {[%clk 0:02:12.5]} 16... Bd5 {[%clk
0:02:41.3]} 17. Qa4 {[%clk 0:01:59.5]} 17... f6 {[%clk 0:02:38.3]} 18. Nc4
{[%clk 0:01:57]} 18... Qe7 {[%clk 0:02:31.9]} 19. Rfc1 {[%clk 0:01:47.9]} 19...
Rac8 {[%clk 0:02:29.4]} 20. Nd2 {[%clk 0:01:35.9]} 20... f5 {[%clk 0:02:26.7]}
21. Rc3 {[%clk 0:01:24.8]} 21... Rxc3 {[%clk 0:02:15.2]} 22. bxc3 {[%clk
0:01:25.7]} 22... f4 {[%clk 0:02:15.7]} 23. c4 {[%clk 0:00:58.5]} 23... Ba8
{[%clk 0:02:15.2]} 24. exf4 {[%clk 0:00:53.5]} 24... Rxf4 {[%clk 0:02:14.2]} 25.
Re1 {[%clk 0:00:50.6]} 25... h5 {[%clk 0:02:05.4]} 26. Qc2 {[%clk 0:00:44.1]}
26... Qg5 {[%clk 0:02:01.3]} 27. Nf1 {[%clk 0:00:41.1]} 27... e3 {[%clk
0:01:53.4]} 28. Nxe3 {[%clk 0:00:36.7]} 28... Rxd4 {[%clk 0:01:52.9]} 29. Qa4
{[%clk 0:00:36]} 29... Rf4 {[%clk 0:01:36.4]} 30. Qe8+ {[%clk 0:00:28.4]} 30...
Rf8 {[%clk 0:01:35.4]} 31. Qxe6+ {[%clk 0:00:29]} 31... Kh7 {[%clk 0:01:36]} 32.
Nd5 {[%clk 0:00:29.6]} 32... Rf5 {[%clk 0:01:16.4]} 33. Qe4 {[%clk 0:00:22.5]}
33... Qg6 {[%clk 0:01:12.7]} 34. Nf6+ {[%clk 0:00:19]} 34... Qxf6 {[%clk
0:01:09.3]} 35. Qxa8 {[%clk 0:00:19.5]} 35... Rxf2 {[%clk 0:01:09.6]} 36. Qd5
{[%clk 0:00:19.5]} 36... Rf5 {[%clk 0:01:08.7]} 37. Qd3 {[%clk 0:00:14.4]} 37...
Kh6 {[%clk 0:01:07.2]} 38. Re8 {[%clk 0:00:12.5]} 38... g6 {[%clk 0:00:53.9]}
39. Qd2+ {[%clk 0:00:10.7]} 39... Qg5 {[%clk 0:00:48.7]} 40. Qc3 {[%clk
0:00:08.6]} 40... Qf6 {[%clk 0:00:46.5]} 41. Qxf6 {[%clk 0:00:06.7]} 41... Rxf6
{[%clk 0:00:46.2]} 42. Re7 {[%clk 0:00:06.4]} 42... a5 {[%clk 0:00:45.5]} 43.
Rc7 {[%clk 0:00:04.5]} 43... Rd6 {[%clk 0:00:44.3]} 44. c5 {[%clk 0:00:04.1]}
44... bxc5 {[%clk 0:00:44.3]} 45. Rxc5 {[%clk 0:00:05]} 45... Ra6 {[%clk
0:00:44.3]} 46. a4 {[%clk 0:00:04.1]} 46... Kg7 {[%clk 0:00:44.2]} 47. Kf2
{[%clk 0:00:04.1]} 47... Kf6 {[%clk 0:00:44.8]} 48. Kg3 {[%clk 0:00:04.7]} 48...
g5 {[%clk 0:00:45.2]} 49. Rb5 {[%clk 0:00:05]} 49... Kg6 {[%clk 0:00:44]} 50. h4
{[%clk 0:00:05.5]} 50... g4 {[%clk 0:00:43.7]} 51. Rg5+ {[%clk 0:00:05]} 51...
Kh6 {[%clk 0:00:44.3]} 52. Rb5 {[%clk 0:00:05.6]} 52... Kg6 {[%clk 0:00:43.5]}
53. Rg5+ {[%clk 0:00:06.1]} 53... Kh6 {[%clk 0:00:43.8]} 54. Rb5 {[%clk
0:00:07]} 54... Ra8 {[%clk 0:00:43.3]} 55. Rb6+ {[%clk 0:00:07]} 55... Kh7
{[%clk 0:00:42.9]} 56. Kf4 {[%clk 0:00:07.5]} 56... Rc8 {[%clk 0:00:30.4]} 57.
Kg5 {[%clk 0:00:08]} 57... Rc5+ {[%clk 0:00:30.4]} 58. Kf4 {[%clk 0:00:08.4]}
58... Rc4+ {[%clk 0:00:30.6]} 59. Kg5 {[%clk 0:00:08.8]} 59... Rc5+ {[%clk
0:00:30.8]} 60. Kf4 {[%clk 0:00:08.9]} 60... Rc4+ {[%clk 0:00:27.9]} 61. Kg5
{[%clk 0:00:09.2]} 61... Rc5+ {[%clk 0:00:28.1]} 1/2-1/2

[Event "*** Titled Tuesday Blitz"]
[Site "Chess.com"]
[Date "2020.04.07"]
[Round "7"]
[White "joksijoksi"]
[Black "zacachess"]
[Result "1/2-1/2"]
[WhiteElo "2263"]
[BlackElo "2287"]
[TimeControl "180+1"]
[EndTime "14:19:21 PDT"]
[Termination "Game drawn by repetition"]

1. e4 {[%clk 0:03:00.9]} 1... c5 {[%clk 0:02:59.8]} 2. Nc3 {[%clk 0:03:00.6]}
2... g6 {[%clk 0:02:59.5]} 3. d4 {[%clk 0:02:57.9]} 3... cxd4 {[%clk 0:02:58.5]}
4. Qxd4 {[%clk 0:02:58.8]} 4... Nf6 {[%clk 0:02:55.4]} 5. Be3 {[%clk 0:02:58.8]}
5... Nc6 {[%clk 0:02:54.5]} 6. Qd2 {[%clk 0:02:58.6]} 6... Bg7 {[%clk
0:02:53.4]} 7. O-O-O {[%clk 0:02:55.6]} 7... d6 {[%clk 0:02:50.9]} 8. f3 {[%clk
0:02:55]} 8... Bd7 {[%clk 0:02:34.7]} 9. Nge2 {[%clk 0:02:44.1]} 9... Rc8 {[%clk
0:02:28.1]} 10. h4 {[%clk 0:02:38.8]} 10... h5 {[%clk 0:02:27.1]} 11. Nf4 {[%clk
0:02:30.9]} 11... Qa5 {[%clk 0:02:15.4]} 12. Kb1 {[%clk 0:02:28.5]} 12... Ne5
{[%clk 0:02:09.2]} 13. a3 {[%clk 0:02:03.5]} 13... Nc4 {[%clk 0:02:03.3]} 14.
Bxc4 {[%clk 0:02:00.8]} 14... Rxc4 {[%clk 0:02:04.2]} 15. Qd3 {[%clk 0:01:10.3]}
15... b5 {[%clk 0:01:49.3]} 16. Bd2 {[%clk 0:01:02.7]} 16... Qc7 {[%clk
0:01:42.2]} 17. Ncd5 {[%clk 0:00:59.2]} 17... Nxd5 {[%clk 0:01:30.1]} 18. Nxd5
{[%clk 0:01:00.1]} 18... Qc8 {[%clk 0:01:19.6]} 19. Nxe7 {[%clk 0:00:37.2]}
19... Kxe7 {[%clk 0:01:15.6]} 20. Bg5+ {[%clk 0:00:37.4]} 20... Ke8 {[%clk
0:01:08.9]} 21. Qxd6 {[%clk 0:00:35]} 21... f6 {[%clk 0:00:33.3]} 22. Bxf6
{[%clk 0:00:25.4]} 22... Bxf6 {[%clk 0:00:34.2]} 23. Qxf6 {[%clk 0:00:24.7]}
23... Rg8 {[%clk 0:00:34]} 24. Qe5+ {[%clk 0:00:22.3]} 24... Be6 {[%clk
0:00:33.7]} 25. Rd6 {[%clk 0:00:16.6]} 25... Kf7 {[%clk 0:00:33.9]} 26. Rhd1
{[%clk 0:00:13.7]} 26... Re8 {[%clk 0:00:33]} 27. Qf4+ {[%clk 0:00:11.1]} 27...
Kg7 {[%clk 0:00:33.2]} 28. Qe5+ {[%clk 0:00:10.9]} 28... Kh7 {[%clk 0:00:32]}
29. c3 {[%clk 0:00:09.4]} 29... a5 {[%clk 0:00:29.1]} 30. Qxb5 {[%clk
0:00:06.8]} 30... Rc5 {[%clk 0:00:24.3]} 31. Qd3 {[%clk 0:00:03.5]} 31... Qb8
{[%clk 0:00:19.5]} 32. e5 {[%clk 0:00:03.2]} 32... Qb3 {[%clk 0:00:18.6]} 33.
Kc1 {[%clk 0:00:01.4]} 33... Rxc3+ {[%clk 0:00:18]} 34. Qxc3 {[%clk 0:00:01.6]}
34... Rc8 {[%clk 0:00:13.5]} 35. Rc6 {[%clk 0:00:01.5]} 35... Rxc6 {[%clk
0:00:02.2]} 36. Qxc6 {[%clk 0:00:01.1]} 36... Bf5 {[%clk 0:00:02.8]} 37. Qc7+
{[%clk 0:00:01.5]} 37... Kh6 {[%clk 0:00:02.7]} 38. Qc3 {[%clk 0:00:02.4]} 38...
Qb6 {[%clk 0:00:01.5]} 39. Qd2+ {[%clk 0:00:02.9]} 39... Kg7 {[%clk 0:00:01.1]}
40. Qc3 {[%clk 0:00:03.8]} 40... Kh6 {[%clk 0:00:02]} 41. Qd2+ {[%clk 0:00:03]}
41... Kg7 {[%clk 0:00:01.5]} 42. Qc3 {[%clk 0:00:03.5]} 42... Kh6 {[%clk
0:00:02.4]} 1/2-1/2

[Event "*** Titled Tuesday Blitz"]
[Site "Chess.com"]
[Date "2020.04.07"]
[Round "7"]
[White "Ba_clbaf_osed_ingo_3v21"]
[Black "fireheart92"]
[Result "1-0"]
[WhiteElo "2698"]
[BlackElo "2875"]
[TimeControl "180+1"]
[EndTime "14:19:23 PDT"]
[Termination "Ba_clbaf_osed_ingo_3v21 won by resignation"]

1. d4 {[%clk 0:03:00.9]} 1... d5 {[%clk 0:03:00.2]} 2. c4 {[%clk 0:03:00.7]}
2... dxc4 {[%clk 0:03:01.1]} 3. e3 {[%clk 0:03:00.2]} 3... Nf6 {[%clk
0:03:00.7]} 4. Bxc4 {[%clk 0:02:57.8]} 4... e6 {[%clk 0:03:00.7]} 5. Nf3 {[%clk
0:02:57.8]} 5... a6 {[%clk 0:03:01.1]} 6. O-O {[%clk 0:02:57.4]} 6... b5 {[%clk
0:03:01.2]} 7. Bd3 {[%clk 0:02:55.6]} 7... Bb7 {[%clk 0:03:01.4]} 8. Qe2 {[%clk
0:02:55.7]} 8... Nbd7 {[%clk 0:02:52.7]} 9. a4 {[%clk 0:02:55.6]} 9... b4 {[%clk
0:02:51.9]} 10. e4 {[%clk 0:02:55.9]} 10... c5 {[%clk 0:02:51.7]} 11. d5 {[%clk
0:02:48.1]} 11... exd5 {[%clk 0:02:24.8]} 12. exd5+ {[%clk 0:02:49]} 12... Qe7
{[%clk 0:02:25.2]} 13. Qd1 {[%clk 0:02:45.3]} 13... O-O-O {[%clk 0:02:20.9]} 14.
Bf4 {[%clk 0:02:23.4]} 14... Nxd5 {[%clk 0:02:17.7]} 15. Re1 {[%clk 0:02:23.2]}
15... Nxf4 {[%clk 0:02:11.9]} 16. Rxe7 {[%clk 0:02:21.8]} 16... Bxe7 {[%clk
0:02:12.8]} 17. Qf1 {[%clk 0:01:44.8]} 17... Nb8 {[%clk 0:01:06.3]} 18. Bf5+
{[%clk 0:01:39]} 18... Kc7 {[%clk 0:01:06.4]} 19. Nbd2 {[%clk 0:01:38.2]} 19...
Nc6 {[%clk 0:00:54.9]} 20. Qc4 {[%clk 0:01:20.6]} 20... Bd6 {[%clk 0:00:37.7]}
21. Ne4 {[%clk 0:00:55]} 21... Na5 {[%clk 0:00:36.1]} 22. Qxf7+ {[%clk
0:00:54.5]} 22... Kb8 {[%clk 0:00:36.4]} 23. Nxd6 {[%clk 0:00:53.4]} 23... Rxd6
{[%clk 0:00:37.3]} 24. Qxg7 {[%clk 0:00:52.4]} 24... Rhd8 {[%clk 0:00:35]} 25.
Qe5 {[%clk 0:00:48.4]} 25... Ka8 {[%clk 0:00:33.6]} 26. h3 {[%clk 0:00:41.5]}
26... Nxg2 {[%clk 0:00:28.2]} 27. Kxg2 {[%clk 0:00:38.3]} 27... Rd5 {[%clk
0:00:28.4]} 28. Qc7 {[%clk 0:00:32.8]} 28... Rg8+ {[%clk 0:00:27.1]} 29. Bg4
{[%clk 0:00:30]} 29... h5 {[%clk 0:00:26.5]} 30. Qxa5 {[%clk 0:00:21.5]} 30...
hxg4 {[%clk 0:00:26.5]} 31. hxg4 {[%clk 0:00:22.4]} 31... Rd4 {[%clk 0:00:22.5]}
32. Rg1 {[%clk 0:00:13.1]} 32... Rdxg4+ {[%clk 0:00:19.4]} 33. Kf1 {[%clk
0:00:12.4]} 33... Bxf3 {[%clk 0:00:18.7]} 34. Rxg4 {[%clk 0:00:11.7]} 34... Rxg4
{[%clk 0:00:19.6]} 35. Qd8+ {[%clk 0:00:09.3]} 35... Ka7 {[%clk 0:00:19.2]} 36.
Qd7+ {[%clk 0:00:06.2]} 36... Bb7 {[%clk 0:00:20.1]} 37. Qxg4 {[%clk 0:00:05.3]}
37... Kb6 {[%clk 0:00:20]} 38. Qc4 {[%clk 0:00:05.4]} 38... Bc6 {[%clk
0:00:19.8]} 39. b3 {[%clk 0:00:04.7]} 39... a5 {[%clk 0:00:19.5]} 40. Qe6 {[%clk
0:00:04.9]} 40... Kc7 {[%clk 0:00:19.4]} 41. Qe7+ {[%clk 0:00:04.9]} 41... Kb6
{[%clk 0:00:19]} 42. f4 {[%clk 0:00:05.8]} 42... c4 {[%clk 0:00:19.2]} 43. Qe3+
{[%clk 0:00:06.1]} 43... Kb7 {[%clk 0:00:19.1]} 44. bxc4 {[%clk 0:00:05.9]}
44... Bxa4 {[%clk 0:00:19.4]} 45. Qc5 {[%clk 0:00:06.1]} 45... Bc6 {[%clk
0:00:17.6]} 46. Qxa5 {[%clk 0:00:05.8]} 1-0

[Event "*** Titled Tuesday Blitz"]
[Site "Chess.com"]
[Date "2020.04.07"]
[Round "7"]
[White "MFBerna"]
[Black "Vojtastr"]
[Result "1-0"]
[WhiteElo "2339"]
[BlackElo "2467"]
[TimeControl "180+1"]
[EndTime "14:19:24 PDT"]
[Termination "MFBerna won on time"]

1. e4 {[%clk 0:03:00.9]} 1... c5 {[%clk 0:02:59.7]} 2. Nf3 {[%clk 0:03:00.4]}
2... Nc6 {[%clk 0:02:59.9]} 3. Bb5 {[%clk 0:02:54.3]} 3... g6 {[%clk 0:02:34.3]}
4. O-O {[%clk 0:02:51]} 4... Bg7 {[%clk 0:02:33.7]} 5. Re1 {[%clk 0:02:37.5]}
5... e5 {[%clk 0:02:33.2]} 6. d3 {[%clk 0:02:35.2]} 6... Nge7 {[%clk 0:02:32.4]}
7. Nbd2 {[%clk 0:02:28.9]} 7... O-O {[%clk 0:02:30.9]} 8. Nf1 {[%clk 0:02:28.3]}
8... a6 {[%clk 0:02:29.2]} 9. Bc4 {[%clk 0:02:28]} 9... b5 {[%clk 0:02:26.7]}
10. Bb3 {[%clk 0:02:27.7]} 10... Na5 {[%clk 0:02:26.9]} 11. Ne3 {[%clk
0:02:20.2]} 11... Nxb3 {[%clk 0:02:26.1]} 12. axb3 {[%clk 0:02:20.5]} 12... d6
{[%clk 0:02:25.1]} 13. c4 {[%clk 0:02:15]} 13... Bb7 {[%clk 0:02:24.2]} 14. Nd5
{[%clk 0:02:05.4]} 14... Nxd5 {[%clk 0:02:18]} 15. cxd5 {[%clk 0:02:00.9]} 15...
a5 {[%clk 0:02:14.4]} 16. Bd2 {[%clk 0:01:54.1]} 16... Qb6 {[%clk 0:02:13.7]}
17. Qc1 {[%clk 0:01:40.6]} 17... Rfc8 {[%clk 0:01:58.7]} 18. Bh6 {[%clk
0:01:32.5]} 18... Bh8 {[%clk 0:01:58.4]} 19. Qg5 {[%clk 0:01:28.6]} 19... a4
{[%clk 0:01:52.9]} 20. bxa4 {[%clk 0:01:20.3]} 20... Rxa4 {[%clk 0:01:52]} 21.
Rxa4 {[%clk 0:01:17.4]} 21... bxa4 {[%clk 0:01:52.1]} 22. Nd2 {[%clk 0:01:16.1]}
22... Ba6 {[%clk 0:01:49.7]} 23. Qe7 {[%clk 0:00:46.5]} 23... Bxd3 {[%clk
0:01:39.2]} 24. Re3 {[%clk 0:00:26.4]} 24... Bb5 {[%clk 0:00:49]} 25. Rf3 {[%clk
0:00:23.1]} 25... Qc7 {[%clk 0:00:49.4]} 26. Rxf7 {[%clk 0:00:17.4]} 26... Qxe7
{[%clk 0:00:49.1]} 27. Rxe7 {[%clk 0:00:18.3]} 27... Rb8 {[%clk 0:00:26.6]} 28.
Ra7 {[%clk 0:00:15.5]} 28... Be8 {[%clk 0:00:24.9]} 29. Nc4 {[%clk 0:00:13.9]}
29... Bf6 {[%clk 0:00:13.5]} 30. g3 {[%clk 0:00:11]} 30... Rd8 {[%clk
0:00:11.7]} 31. Rb7 {[%clk 0:00:09.2]} 31... g5 {[%clk 0:00:08.2]} 32. h4 {[%clk
0:00:06.4]} 32... gxh4 {[%clk 0:00:08.2]} 33. gxh4 {[%clk 0:00:07.3]} 33... Bxh4
{[%clk 0:00:08.3]} 34. Ne3 {[%clk 0:00:07.2]} 34... Bg6 {[%clk 0:00:07.4]} 35.
f3 {[%clk 0:00:06.5]} 35... Bf6 {[%clk 0:00:05.4]} 36. Nc4 {[%clk 0:00:05.4]}
36... Ra8 {[%clk 0:00:03.6]} 37. Nxd6 {[%clk 0:00:04.4]} 37... a3 {[%clk
0:00:03.4]} 38. bxa3 {[%clk 0:00:04.7]} 38... Rd8 {[%clk 0:00:01.4]} 39. Nc4
{[%clk 0:00:04.1]} 39... Ra8 {[%clk 0:00:02]} 40. Kf2 {[%clk 0:00:04.3]} 40...
Bd8 {[%clk 0:00:02.2]} 41. Ke2 {[%clk 0:00:04]} 41... Bf6 {[%clk 0:00:01.5]} 42.
Kd3 {[%clk 0:00:03.6]} 42... Bd8 {[%clk 0:00:02.1]} 43. Rg7+ {[%clk 0:00:02.8]}
43... Kh8 {[%clk 0:00:01.3]} 44. Rd7 {[%clk 0:00:03.7]} 44... Kg8 {[%clk
0:00:01.5]} 45. Nxe5 {[%clk 0:00:03.3]} 1-0